[Event "WSTCC-65 2024"]
[Site "Krakow"]
[Date "2024.07.07"]
[Round "6.1"]
[White "Gruenfeld, Yehuda"]
[Black "Nunn, John D M"]
[Result "0-1"]
[ECO "B94"]
[WhiteElo "2400"]
[BlackElo "2552"]
[Annotator "TA"]
[PlyCount "98"]
[EventDate "2024.07.01"]
[EventType "team-tourn"]
[EventCountry "POL"]
[SourceTitle "playchess.com"]
[Source "ChessBase"]
[SourceQuality "1"]
[TimeControl "40/5400+30:1800+30"]

{[%evp 16,98,0,0,7,0,0,0,0,-22,-12,-21,-22,-6,14,0,0,0,0,-61,-58,-54,-60,-68,-31,-69,-47,-88,-106,-221,-210,-265,-247,-293,-292,-282,-298,-253,-177,-222,-207,-210,-210,-440,-433,-501,-510,-650,-661,-608,-421,-455,-391,-378,-343,-470,-455,-466,-453,-490,-491,-437,-274,-526,-544,-518,-522,-514,-496,-494,-485,-903,-906,-902,-910,-861,-616,-722,-618,-634,-642,-5256,-5256,-29983,-29983]} 1. e4 {[%emt 0:00:23]} c5 {[%emt 0:00:08]} 2. Nf3 {[%emt 0:00:29]} d6 {[%emt 0:00:06]} 3. d4 {[%emt 0:00:18]} cxd4 {[%emt 0:00:10]} 4. Nxd4 {[%emt 0:00:07]} Nf6 {[%emt 0:00:05]} 5. Nc3 {[%emt 0:00:05]} a6 {[%emt 0:00:06]} 6. Bg5 {[%emt 0:00:33]} Nbd7 {[%emt 0:00:29]} 7. Bc4 {[%emt 0:08:46]} Qb6 {[%emt 0:00:58] B94: Sicilian Najdorf: 6 Bg5 Nbd7.} 8. Nb3 {[%emt 0:11:23]} e6 {[%emt 0:03:34]} 9. Qe2 {[%emt 0:09:21]} Be7 {[%emt 0:02:04]} 10. O-O $146 {[%emt 0:04:20]} ({Predecessor:} 10. f4 Qc7 11. O-O-O b5 12. Bxb5 axb5 13. Nxb5 Qb8 14. Rhe1 Ba6 15. a4 Bxb5 16. axb5 {0-1 Llanes Luno,P (2103)-Newrkla,K (2210) Aragon-chT Honor GrA 2016 (5.3)}) 10... h6 {[%emt 0:07:59]} 11. Bd2 {[%emt 0:06:19]} O-O {[%emt 0:02:55]} 12. a4 {[%emt 0:01:29]} Ne5 {[%emt 0:02:16]} 13. a5 {[%emt 0:00:48]} Qc7 {[%emt 0:00:32]} 14. Bd3 {[%emt 0:00:08]} Nxd3 {[%emt 0:00:57]} 15. cxd3 {[%emt 0:01:41]} b5 {[%emt 0:00:24]} 16. Rfc1 {[%emt 0:02:20]} Qb7 {[%emt 0:03:31]} 17. Na2 {[%emt 0:02:46]} (17. f3 $11) 17... e5 $1 $15 {[%emt 0:02:33]} 18. Bb4 {[%emt 0:03:05]} Be6 {[%emt 0:01:42]} 19. Nd2 {[%emt 0:00:08]} Rac8 {[%emt 0:04:36]} 20. Nc3 {[%emt 0:01:53]} Rfd8 {[%emt 0:03:08]} 21. Re1 {[%emt 0:06:44]} Nd7 {[%emt 0:03:36]} 22. g3 {[%emt 0:16:05]} (22. Nf1 $17) 22... Nb8 $19 {[%emt 0:07:51]} 23. f4 {[%emt 0:06:02]} f6 {[%emt 0:07:42]} 24. Nd5 {[%emt 0:00:12]} Bxd5 {[%emt 0:07:32]} 25. exd5 {[%emt 0:00:08]} Qxd5 {[%emt 0:00:04]} 26. Nf3 {[%emt 0:00:08]} Bf8 {[%emt 0:04:05]} 27. Bc3 {[%emt 0:04:47]} Nc6 {[%emt 0:01:27]} 28. Qe4 {[%emt 0:04:33]} Qb3 {[%emt 0:05:08]} 29. Re2 $2 {[%emt 0:00:09]} (29. Rac1) 29... b4 $19 {[%emt 0:00:50]} 30. Be1 {[%emt 0:00:14]} d5 {[%emt 0:00:50]} 31. Qg6 {[%emt 0:02:47]} e4 {[%emt 0:00:53]} 32. Nh4 {[%emt 0:00:40]} Ne7 {[%emt 0:00:16]} 33. Qg4 {[%emt 0:00:39]} Qxd3 {[%emt 0:00:48]} ({Weaker is} 33... exd3 34. Qf3 $19) 34. Rd2 {[%emt 0:01:53]} Qe3+ {[%emt 0:04:34]} 35. Kg2 {[%emt 0:00:07]} f5 {[%emt 0:00:56]} 36. Qd1 {[%emt 0:01:23]} Qc5 {[%emt 0:00:28]} 37. Bf2 {[%emt 0:01:13]} e3 {[%emt 0:00:58]} 38. Bg1 {[%emt 0:00:05]} d4 {[%emt 0:00:12]} 39. Rd3 $2 {[%emt 0:00:46]} (39. Bxe3 g5 40. fxg5 dxe3 41. Rxd8 Rxd8 42. Qxd8 hxg5 43. Nxf5 (43. Nf3 $2 Qc2+ 44. Kh1 Qe4 $19) 43... Qxf5 44. Rf1 Qe4+ 45. Kg1) 39... Qc2+ $19 {[%emt 0:02:45]} 40. Qxc2 {[%emt 0:00:35]} Rxc2+ {[%emt 0:00:05]} 41. Kh1 {[%emt 0:30:27]} Rd5 {[%emt 0:31:50]} 42. Nf3 {[%emt 0:00:30]} Rxb2 {[%emt 0:04:13]} ({Much less strong is} 42... Nc6 43. Bxe3 Rxb2 (43... Rxa5 $2 44. Rxa5 Nxa5 45. Bxd4 $19) 44. Nxd4) 43. Rxd4 {[%emt 0:00:24]} (43. Re1 $142) 43... Rxd4 $19 {[%emt 0:01:30]} 44. Nxd4 {[%emt 0:00:07]} Nd5 {[%emt 0:02:52]} 45. Rc1 {[%emt 0:00:35]} e2 {[%emt 0:01:16]} 46. Re1 {[%emt 0:01:07]} b3 {[%emt 0:01:06]} 47. Nxe2 {[%emt 0:00:13]} Bb4 {[%emt 0:00:31]} 48. Rd1 {[%emt 0:00:14]} Rxe2 {[%emt 0:00:12]} 49. Rxd5 {[%emt 0:00:06]} b2 {[%emt 0:00:07]} 0-1

[Event "WSTCC-65 2024"]
[Site "Krakow"]
[Date "2024.07.07"]
[Round "6.1"]
[White "Janocha, Wieslaw"]
[Black "Westerinen, Heikki M.J."]
[Result "1/2-1/2"]
[ECO "C10"]
[WhiteElo "2167"]
[BlackElo "2221"]
[Annotator "TA"]
[PlyCount "41"]
[EventDate "2024.07.01"]
[EventType "team-tourn"]
[EventCountry "POL"]
[SourceTitle "playchess.com"]
[Source "ChessBase"]
[SourceQuality "1"]
[TimeControl "40/5400+30:1800+30"]

{[%evp 16,41,17,14,13,0,0,0,-5,-5,33,-15,0,-35,-14,0,15,0,0,-61,-44,-67,-28,-51,-33,-70,-30,-47]} 1. e4 {[%emt 0:00:05]} e6 {[%emt 0:00:27]} 2. d4 {[%emt 0:00:19]} d5 {[%emt 0:00:19]} 3. Nd2 {[%emt 0:00:20][%cal Bb1d2,Bd2e4,Be4g5][%mdl 32] EV=11.32} dxe4 {[%emt 0:02:35]} 4. Nxe4 {[%emt 0:00:41]} Bd7 {[%emt 0:00:16]} 5. Nf3 {[%emt 0:04:52]} Bc6 {[%emt 0:00:18]} 6. Bd3 {[%emt 0:00:25]} Nd7 {[%emt 0:00:28]} 7. O-O {[%emt 0:01:27]} Ngf6 {[%emt 0:00:34]} 8. Neg5 {[%emt 0:14:19]} Bd6 {[%emt 0:00:41]} 9. Re1 {[%emt 0:06:09]} h6 {[%emt 0:01:58] C10: Frans met 3 Pc3: Ongebruikelijke Zwart 3e zetten en 3...dxe4.} 10. Ne4 {[%emt 0:06:59] OK} Nxe4 {[%emt 0:01:49] OK} 11. Bxe4 {[%emt 0:00:26]} Bxe4 {[%emt 0:00:12] De stelling is in evenwicht.} 12. Rxe4 {[%emt 0:00:57]} Nf6 {[%emt 0:01:42] Onnauwkeurig} 13. Re2 $146 {[%emt 0:01:16] Fout (0.5)} (13. Re1 $14 {kan beter zijn.}) ({Predecessor:} 13. Re1 O-O {½-½ Nevednichy,V (2537)-Ionescu,C (2451) ROM-ch Iasi 1999 (5)}) 13... O-O {[%emt 0:03:16]} 14. b3 {[%emt 0:01:28] Onnauwkeurig} c6 {[%emt 0:16:07]} 15. Bb2 {[%emt 0:02:41] OK} Qa5 {[%emt 0:03:30]} 16. Ne5 {[%emt 0:11:56]} Rfd8 {[%emt 0:10:00]} 17. Qe1 {[%emt 0:06:46] Voorkomt c5. Fout (0.6)} ({Wit zou moeten proberen} 17. c4 $11) 17... Qxe1+ $15 {[%emt 0:00:48] Beste (Gemakkelijk)} 18. Raxe1 {[%emt 0:00:35]} Rac8 {[%emt 0:02:15] Onnauwkeurig} 19. Nd3 {[%emt 0:14:32]} Nd5 {[%emt 0:10:46]} 20. Rd1 {[%emt 0:04:25] Onnauwkeurig} Nf4 {[%emt 0:00:44] Onnauwkeurig} 21. Red2 {[%emt 0:00:40] Blunder waarde: Wit=0.26 (precies) /Zwart=0.16 (erg precies) .  Fout:        	Wit=2      	---        Onnauwkeurig:    	Wit=2      	Zwart=3      OK:         	Wit=2      	Zwart=1      Beste:        	---       	Zwart=1} 1/2-1/2

[Event "WSTCC-65 2024"]
[Site "Krakow"]
[Date "2024.07.07"]
[Round "6.1"]
[White "Shilov, Sergej"]
[Black "Thuesen, Mogens"]
[Result "0-1"]
[ECO "C11"]
[WhiteElo "2143"]
[BlackElo "2158"]
[Annotator "RC"]
[PlyCount "88"]
[EventDate "2024.07.01"]
[EventType "team-tourn"]
[EventCountry "POL"]
[SourceTitle "playchess.com"]
[Source "ChessBase"]
[SourceQuality "1"]
[TimeControl "40/5400+30:1800+30"]

1. e4 {[%emt 0:00:08]} e6 {[%emt 0:00:27]} 2. d4 {[%emt 0:00:09]} d5 {[%emt 0:00:06]} 3. Nc3 {[%emt 0:00:07]} Nf6 {[%emt 0:00:07]} 4. Bg5 {[%emt 0:00:23]} dxe4 {[%emt 0:00:14]} 5. Nxe4 {[%emt 0:00:24]} Be7 {[%emt 0:00:07]} 6. Bxf6 {[%emt 0:00:53]} gxf6 {[%emt 0:00:06]} 7. Nf3 {[%emt 0:04:53]} f5 {[%emt 0:01:17]} 8. Ng3 {[%emt 0:03:07]} h5 {[%emt 0:00:08]} 9. h4 {[%emt 0:00:36]} c5 {[%emt 0:00:09]} 10. Bb5+ {[%emt 0:06:09]} Nd7 {[%emt 0:01:38]} 11. Qe2 {[%emt 0:03:17]} a6 {[%emt 0:03:55]} 12. Bxd7+ {[%emt 0:00:39]} Bxd7 {[%emt 0:00:11]} 13. O-O-O {[%emt 0:01:31]} Qc7 {[%emt 0:18:46]} 14. Ne5 {[%emt 0:05:53]} Rd8 {[%emt 0:07:52]} 15. Kb1 {[%emt 0:04:01]} Bf6 {[%emt 0:04:39]} 16. Nxh5 {[%emt 0:01:40]} Rxh5 {[%emt 0:06:23]} 17. Qxh5 {[%emt 0:05:56]} Ba4 {[%emt 0:00:14]} 18. Qh6 {[%emt 0:04:02]} Bxc2+ {[%emt 0:02:03]} 19. Kxc2 {[%emt 0:05:45]} cxd4+ {[%emt 0:01:14]} 20. Nc4 {[%emt 0:07:09]} Qxc4+ {[%emt 0:00:24]} 21. Kb1 {[%emt 0:00:02]} Ke7 {[%emt 0:00:49]} 22. Rc1 {[%emt 0:03:07]} Qd3+ {[%emt 0:00:18]} 23. Ka1 {[%emt 0:00:02]} Rd7 {[%emt 0:00:16]} 24. Rc8 {[%emt 0:00:53]} e5 {[%emt 0:03:26]} 25. Rhc1 {[%emt 0:03:36]} Ke6 {[%emt 0:05:34]} 26. Qf8 {[%emt 0:02:42]} Bxh4 {[%emt 0:03:48]} 27. a3 {[%emt 0:02:54]} Be7 {[%emt 0:14:24]} 28. Qe8 {[%emt 0:00:40]} Qb5 {[%emt 0:01:53]} 29. R1c5 {[%emt 0:03:48]} Qf1+ {[%emt 0:07:21]} 30. Ka2 {[%emt 0:00:28]} Qxg2 {[%emt 0:00:27]} 31. Rxe5+ {[%emt 0:03:12]} Kxe5 {[%emt 0:00:11]} 32. Qxd7 {[%emt 0:00:02]} Qd5+ {[%emt 0:00:11]} 33. Qxd5+ {[%emt 0:00:25]} Kxd5 {[%emt 0:00:06]} 34. Rc7 {[%emt 0:00:45]} Bh4 {[%emt 0:00:08]} 35. Rxf7 {[%emt 0:04:24]} Ke4 {[%emt 0:00:30]} 36. Kb3 {[%emt 0:02:01]} Bxf2 {[%emt 0:00:59]} 37. Rxb7 {[%emt 0:01:00]} f4 {[%emt 0:01:06]} 38. Kc4 {[%emt 0:00:37]} Be3 {[%emt 0:00:39]} 39. Re7+ {[%emt 0:02:44]} Kf3 {[%emt 0:02:37]} 40. b4 {[%emt 0:00:36]} Ke2 {[%emt 0:00:26]} 41. a4 {[%emt 0:37:15]} f3 {[%emt 0:30:35]} 42. b5 {[%emt 0:00:21]} axb5+ {[%emt 0:00:06]} 43. axb5 {[%emt 0:00:09]} f2 {[%emt 0:00:11]} 44. Rf7 {[%emt 0:01:59]} d3 {[%emt 0:00:12]} 0-1

[Event "WSTCC-65 2024"]
[Site "Krakow"]
[Date "2024.07.07"]
[Round "6.2"]
[White "Kosten, Anthony C."]
[Black "Mikhalevski, Alexander"]
[Result "1/2-1/2"]
[ECO "A14"]
[WhiteElo "2360"]
[BlackElo "2393"]
[Annotator "RC"]
[PlyCount "88"]
[EventDate "2024.07.01"]
[EventType "team-tourn"]
[EventCountry "POL"]
[SourceTitle "playchess.com"]
[Source "ChessBase"]
[SourceQuality "1"]
[TimeControl "40/5400+30:1800+30"]

1. c4 {[%emt 0:00:03]} e6 {[%emt 0:00:16]} 2. g3 {[%emt 0:00:09]} d5 {[%emt 0:00:16]} 3. Bg2 {[%emt 0:00:08]} Nf6 {[%emt 0:00:05]} 4. Nf3 {[%emt 0:00:13]} Be7 {[%emt 0:00:13]} 5. O-O {[%emt 0:00:59]} O-O {[%emt 0:00:07]} 6. b3 {[%emt 0:00:19]} b6 {[%emt 0:00:10]} 7. Bb2 {[%emt 0:00:28]} Bb7 {[%emt 0:00:11]} 8. e3 {[%emt 0:03:01]} Nbd7 {[%emt 0:00:16]} 9. Nc3 {[%emt 0:01:20]} c5 {[%emt 0:00:11]} 10. Qe2 {[%emt 0:04:04]} Rc8 {[%emt 0:02:50]} 11. Rfd1 {[%emt 0:00:41]} Qc7 {[%emt 0:00:10]} 12. Rac1 {[%emt 0:01:07]} Qb8 {[%emt 0:00:08]} 13. cxd5 {[%emt 0:03:43]} Nxd5 {[%emt 0:00:25]} 14. Nxd5 {[%emt 0:00:36]} Bxd5 {[%emt 0:00:39]} 15. e4 {[%emt 0:05:56]} Bb7 {[%emt 0:00:12]} 16. d4 {[%emt 0:06:18]} Bf6 {[%emt 0:03:42]} 17. Ba3 {[%emt 0:13:10]} Be7 {[%emt 0:17:32]} 18. Ne1 {[%emt 0:04:44]} Rfe8 {[%emt 0:00:52]} 19. dxc5 {[%emt 0:04:48]} Nxc5 {[%emt 0:01:02]} 20. e5 {[%emt 0:01:21]} Bxg2 {[%emt 0:03:56]} 21. Nxg2 {[%emt 0:00:48]} Qb7 {[%emt 0:07:26]} 22. h4 {[%emt 0:03:26]} b5 {[%emt 0:06:01]} 23. Ne3 {[%emt 0:06:00]} a6 {[%emt 0:05:16]} 24. Rc2 {[%emt 0:05:25]} Bf8 {[%emt 0:02:39]} 25. Qg4 {[%emt 0:07:27]} a5 {[%emt 0:18:50]} 26. Rdc1 {[%emt 0:13:14]} b4 {[%emt 0:09:49]} 27. Bb2 {[%emt 0:00:20]} a4 {[%emt 0:02:50]} 28. bxa4 {[%emt 0:03:43]} Nxa4 {[%emt 0:04:12]} 29. Ba1 {[%emt 0:00:52]} Rxc2 {[%emt 0:00:31]} 30. Rxc2 {[%emt 0:00:11]} Rc8 {[%emt 0:00:43]} 31. Rxc8 {[%emt 0:02:37]} Qxc8 {[%emt 0:00:04]} 32. Qc4 {[%emt 0:01:01]} Qb7 {[%emt 0:01:31]} 33. Qc2 {[%emt 0:03:49]} Qd7 {[%emt 0:01:38]} 34. Qd1 {[%emt 0:00:55]} Qc6 {[%emt 0:04:27]} 35. Qc2 {[%emt 0:01:13]} Qd7 {[%emt 0:02:58]} 36. Qd1 {[%emt 0:00:33]} Qc6 {[%emt 0:00:06]} 37. Bd4 {[%emt 0:01:11]} h6 {[%emt 0:01:18]} 38. Qc2 {[%emt 0:00:39]} Qd7 {[%emt 0:02:50]} 39. Qc4 {[%emt 0:00:27]} Qb7 {[%emt 0:00:32]} 40. Kf1 {[%emt 0:02:13]} Qe4 {[%emt 0:01:12]} 41. Ke2 {[%emt 0:30:55]} h5 {[%emt 0:04:16]} 42. Qd3 {[%emt 0:00:00]} Qc6 {[%emt 0:00:52]} 43. Qc4 {[%emt 0:00:00]} Qe4 {[%emt 0:00:17]} 44. Qd3 {[%emt 0:00:00]} Qc6 {[%emt 0:00:10]} 1/2-1/2

[Event "WSTCC-65 2024"]
[Site "Krakow"]
[Date "2024.07.07"]
[Round "6.2"]
[White "Hentunen, Asko"]
[Black "Swierczewski, Marek"]
[Result "1/2-1/2"]
[ECO "A11"]
[WhiteElo "2207"]
[BlackElo "2059"]
[Annotator "TA"]
[PlyCount "115"]
[EventDate "2024.07.01"]
[EventType "team-tourn"]
[EventCountry "POL"]
[SourceTitle "playchess.com"]
[Source "ChessBase"]
[SourceQuality "1"]
[TimeControl "40/5400+30:1800+30"]

{[%evp 9,115,0,2,6,2,-46,0,6,1,19,6,0,0,0,6,0,17,16,62,73,68,33,56,41,36,35,44,54,51,50,50,62,50,54,57,57,63,25,65,61,65,85,93,97,101,103,90,100,98,95,126,117,116,114,127,107,137,110,116,110,112,32,41,48,36,25,85,11,13,10,16,16,19,20,80,80,80,80,79,0,0,0,0,0,0,0,0,0,0,0,0,0,0,0,0,0,0,0,0,0,0,0,0,0,0,0,0,0]} 1. c4 {[%emt 0:00:03]} c6 {[%emt 0:00:11]} 2. Qa4 {[%emt 0:00:06]} e5 {[%emt 0:00:21]} 3. Nc3 {[%emt 0:00:07]} Nf6 {[%emt 0:00:11]} 4. Nf3 {[%emt 0:00:05]} Bd6 {[%emt 0:00:41]} 5. g3 {[%emt 0:00:21]} O-O {[%emt 0:02:10]} 6. Bg2 {[%emt 0:00:21]} Bc7 {[%emt 0:00:13]} 7. c5 {[%emt 0:03:08]} (7. O-O $11 {is superior.}) 7... d5 {[%emt 0:04:40]} ({Black should play} 7... Qe7 $15) 8. cxd6 $11 {[%emt 0:02:23]} Bxd6 {[%emt 0:00:12]} 9. O-O {[%emt 0:00:52]} Nbd7 {[%emt 0:02:41]} 10. d4 {[%emt 0:07:09]} exd4 {[%emt 0:08:27]} 11. Qxd4 {[%emt 0:01:33]} Bc5 {[%emt 0:02:44]} 12. Qd3 {[%emt 0:04:59]} Nb6 {[%emt 0:00:16]} 13. Qc2 {[%emt 0:00:08]} Be7 {[%emt 0:15:43]} (13... h6 $11 {should be considered.}) 14. Rd1 $14 {[%emt 0:01:40]} Qe8 {[%emt 0:00:18]} 15. h3 {[%emt 0:02:17] White is more active.} Nbd5 {[%emt 0:03:58]} 16. Nxd5 {[%emt 0:08:59]} Nxd5 {[%emt 0:01:02]} 17. Nd4 {[%emt 0:01:36]} Bf6 {[%emt 0:09:18]} 18. e4 {[%emt 0:02:04]} Nb4 {[%emt 0:01:43]} 19. Qc4 {[%emt 0:06:06]} a5 {[%emt 0:01:29]} 20. a3 {[%emt 0:02:02]} Bxd4 {[%emt 0:00:16]} 21. Rxd4 {[%emt 0:12:27]} Be6 {[%emt 0:00:11]} 22. Qe2 {[%emt 0:00:39]} c5 {[%emt 0:00:31]} 23. Rd1 {[%emt 0:00:14]} Nc6 {[%emt 0:00:25]} 24. Be3 $36 {[%emt 0:00:10][%mdl 2048] Wards off Nd4. White has the initiative.} b6 {[%emt 0:00:26]} 25. Qb5 {[%emt 0:04:05] Against Bb3} Nd4 {[%emt 0:11:01]} 26. Qxe8 {[%emt 0:11:43]} Rfxe8 {[%emt 0:00:08]} 27. Bxd4 {[%emt 0:00:05]} cxd4 {[%emt 0:00:08]} 28. Rxd4 {[%emt 0:00:05]} Rec8 {[%emt 0:00:28]} 29. Rad1 {[%emt 0:00:23]} Bb3 {[%emt 0:08:52]} 30. R1d2 {[%emt 0:01:25]} g6 {[%emt 0:00:19]} 31. f4 {[%emt 0:00:34]} Rab8 {[%emt 0:07:37]} 32. e5 {[%emt 0:03:35]} Rc5 {[%emt 0:01:25]} 33. Bd5 {[%emt 0:02:35]} Bxd5 {[%emt 0:01:07]} 34. Rxd5 {[%emt 0:00:04]} Rbc8 {[%emt 0:00:11]} 35. Rxc5 {[%emt 0:00:42]} (35. R5d3 $16) 35... Rxc5 $16 {[%emt 0:00:08][%mdl 4096] Endgame. KR-KR} 36. Kf2 {[%emt 0:00:23]} Rb5 {[%emt 0:00:16]} 37. g4 {[%emt 0:03:43]} h6 {[%emt 0:02:01]} (37... Kf8 $11) 38. Re2 {[%emt 0:01:08]} (38. Kf3 $16) 38... Rb3 $11 {[%emt 0:01:08]} 39. Kg2 {[%emt 0:06:05]} Kf8 {[%emt 0:00:24]} 40. Rc2 {[%emt 0:00:48]} Ke7 {[%emt 0:04:02]} 41. h4 {[%emt 0:31:27]} Kf8 {[%emt 0:33:52]} (41... b5 $11 {keeps the balance.}) 42. h5 $16 {[%emt 0:06:03]} gxh5 {[%emt 0:00:34]} 43. gxh5 {[%emt 0:00:06]} a4 {[%emt 0:00:08]} 44. f5 {[%emt 0:01:24]} (44. Rc8+ $16 Ke7 45. Rc6) 44... Rb5 $11 {[%emt 0:03:50] The position is equal.} 45. Rc8+ {[%emt 0:00:00]} Ke7 {[%emt 0:00:00]} 46. Rc6 {[%emt 0:00:00]} Rxe5 {[%emt 0:00:00]} 47. f6+ {[%emt 0:00:00]} (47. Rxh6 Rxf5 48. Rxb6 Rg5+ 49. Kf2 Rxh5) 47... Kd7 {[%emt 0:00:00]} 48. Rxb6 {[%emt 0:00:00]} Rxh5 {[%emt 0:00:00]} 49. Rb4 {[%emt 0:00:00]} Ra5 {[%emt 0:00:00]} 50. Re4 {[%emt 0:00:00]} Rb5 {[%emt 0:00:00]} 51. Re7+ {[%emt 0:00:00]} Kd6 {[%emt 0:00:00]} 52. Rxf7 {[%emt 0:00:00]} Rxb2+ {[%emt 0:00:00]} 53. Kg3 {[%emt 0:03:01]} Ke6 54. Ra7 {[%emt 0:00:08]} Kxf6 {[%emt 0:00:00] [#] Hoping for ...Rb3+.} 55. Rxa4 {[%emt 0:00:10]} Ke5 {[%emt 0:00:00]} 56. Kg4 {[%emt 0:00:22]} Kd5 {[%emt 0:00:00]} 57. Ra8 {[%emt 0:00:19]} Kc6 {[%emt 0:00:00]} 58. Kh5 {[%emt 0:00:31] Weighted Error Value: White=0.11 (very precise) /Black=0.11 (very precise) .  Mistake:       	White=4     	Black=4      Inaccurate:     	White=2     	Black=2      OK:         	White=19    	Black=19     Best:        	White=2     	Black=3} 1/2-1/2

[Event "WSTCC-65 2024"]
[Site "Krakow"]
[Date "2024.07.07"]
[Round "6.2"]
[White "Holst, Per"]
[Black "Gasik, Piotr"]
[Result "0-1"]
[ECO "A80"]
[WhiteElo "2073"]
[BlackElo "1954"]
[Annotator "RC"]
[PlyCount "104"]
[EventDate "2024.07.01"]
[EventType "team-tourn"]
[EventCountry "POL"]
[SourceTitle "playchess.com"]
[Source "ChessBase"]
[SourceQuality "1"]
[TimeControl "40/5400+30:1800+30"]

1. d4 {[%emt 0:00:05]} f5 {[%emt 0:00:19]} 2. Nf3 {[%emt 0:00:09]} Nf6 {[%emt 0:00:09]} 3. g3 {[%emt 0:00:08]} g6 {[%emt 0:00:06]} 4. Bg2 {[%emt 0:00:12]} Bg7 {[%emt 0:00:08]} 5. O-O {[%emt 0:00:06]} O-O {[%emt 0:00:20]} 6. b3 {[%emt 0:00:05]} c6 {[%emt 0:06:32]} 7. Bb2 {[%emt 0:00:09]} d5 {[%emt 0:00:12]} 8. c4 {[%emt 0:00:16]} e6 {[%emt 0:00:06]} 9. Nbd2 {[%emt 0:02:33]} Nbd7 {[%emt 0:00:11]} 10. e3 {[%emt 0:04:30]} h6 {[%emt 0:01:22]} 11. b4 {[%emt 0:01:33]} g5 {[%emt 0:01:28]} 12. a4 {[%emt 0:00:47]} Ne4 {[%emt 0:03:06]} 13. b5 {[%emt 0:15:45]} Kh7 {[%emt 0:05:11]} 14. Ne1 {[%emt 0:02:30]} Nxd2 {[%emt 0:06:23]} 15. Qxd2 {[%emt 0:00:12]} Nb6 {[%emt 0:00:06]} 16. c5 {[%emt 0:03:52]} Nc4 {[%emt 0:01:25]} 17. Qe2 {[%emt 0:00:18]} cxb5 {[%emt 0:00:29]} 18. Bc3 {[%emt 0:12:40]} bxa4 {[%emt 0:03:51]} 19. Rxa4 {[%emt 0:01:44]} Bd7 {[%emt 0:00:11]} 20. Rb4 {[%emt 0:00:13]} b5 {[%emt 0:08:07]} 21. cxb6 {[%emt 0:01:24]} Nxb6 {[%emt 0:00:15]} 22. Nd3 {[%emt 0:00:32]} a5 23. Rbb1 Na4 {[%emt 0:11:54]} 24. Bd2 {[%emt 0:02:03]} Qc8 {[%emt 0:04:46]} 25. Ne5 {[%emt 0:03:14]} Bxe5 {[%emt 0:07:53]} 26. dxe5 {[%emt 0:00:56]} Nc3 {[%emt 0:00:23]} 27. Bxc3 {[%emt 0:00:29]} Qxc3 {[%emt 0:00:12]} 28. f4 {[%emt 0:07:28]} g4 {[%emt 0:05:53]} 29. Rfc1 {[%emt 0:02:24]} Qa3 {[%emt 0:00:25]} 30. Rc7 {[%emt 0:01:35]} Rf7 {[%emt 0:00:07]} 31. Rbb7 {[%emt 0:09:21]} Rd8 {[%emt 0:00:10]} 32. Bxd5 {[%emt 0:03:20]} exd5 {[%emt 0:01:33]} 33. e6 {[%emt 0:00:20]} Bxe6 {[%emt 0:01:09]} 34. Rxf7+ {[%emt 0:00:22]} Bxf7 {[%emt 0:00:09]} 35. Rxf7+ {[%emt 0:00:20]} Kg6 {[%emt 0:01:24]} 36. Rb7 {[%emt 0:06:11]} Qc1+ {[%emt 0:03:12]} 37. Kg2 {[%emt 0:01:40]} Rc8 {[%emt 0:00:46]} 38. Rb2 {[%emt 0:00:16]} Rc4 {[%emt 0:01:26]} 39. Qd2 {[%emt 0:02:07]} Qxd2+ {[%emt 0:03:11]} 40. Rxd2 {[%emt 0:00:02]} a4 {[%emt 0:01:24]} 41. h3 {[%emt 0:46:51]} h5 {[%emt 0:30:49]} 42. hxg4 {[%emt 0:00:26]} hxg4 {[%emt 0:00:07]} 43. Kf2 {[%emt 0:00:18]} Kf6 {[%emt 0:00:45]} 44. Ke2 {[%emt 0:00:16]} Ke6 {[%emt 0:00:06]} 45. Rb2 {[%emt 0:00:00]} Kd6 {[%emt 0:00:00]} 46. Rb8 {[%emt 0:00:00]} Rc3 {[%emt 0:00:00]} 47. Ra8 {[%emt 0:00:00]} Ra3 {[%emt 0:00:00]} 48. Rf8 {[%emt 0:00:00]} Kc5 {[%emt 0:00:00]} 49. Rxf5 {[%emt 0:00:00]} Kc4 {[%emt 0:00:00]} 50. Re5 {[%emt 0:00:00]} Ra2+ {[%emt 0:00:00]} 51. Ke1 {[%emt 0:00:00]} a3 {[%emt 0:00:00]} 52. f5 {[%emt 0:00:00]} Rg2 {[%emt 0:00:00]} 0-1